fUSD/lending_fUSD_20260316
["ID","MTS","AMOUNT","RATE_DAILY","PERIOD"]
[408438445,1773624632175,-177.74,0.00015039,2]
[408438446,1773624632184,-157.38,0.00015076,2]
[408438447,1773624632194,-168.84,0.00015094,30]
[408438448,1773624632203,-1200.0,0.00015094,2]
[408438449,1773624632213,-897.13,0.00015095,2]
[408438451,1773624632223,-166.66,0.00015196,2]
[408438452,1773624632232,-500.0,0.00015288,2]
[408438454,1773624632242,-500.0,0.000155,2]
[408438455,1773624632251,-166.66,0.00015516,2]
[408438456,1773624632261,-897.13,0.00015539,2]
[408438457,1773624632270,-1000.0,0.000157,2]
[408438458,1773624632279,-166.66,0.00015836,2]
[408438459,1773624632289,-897.13,0.00015983,2]
[408438460,1773624632298,-1000.0,0.00016,2]
[408438461,1773624632308,-1003.73,0.00016063,2]
[408438462,1773624632317,-230.83,0.00016063,2]
[408438463,1773624632326,-1500.0,0.00016064,2]
[408438464,1773624632335,-166.66,0.00016156,2]
[408438465,1773624632346,-150.0,0.00016176,2]
[408438466,1773624632355,-944.39,0.000164,2]
[408438467,1773624632364,-404.74,0.000164,7]
[408438468,1773624632374,-897.13,0.00016427,2]
[408438469,1773624632383,-166.66,0.00016476,2]
[408438470,1773624632392,-1680.0,0.00016602,2]
[408438471,1773624632401,-166.66,0.00016796,2]
[408438472,1773624632410,-862.80064453,0.00016808,2]
[408438473,1773624632420,-1003.73,0.00016866,2]
[408438474,1773624632429,-897.13,0.00016871,2]
[408438475,1773624632438,-150.0,0.00017071,2]
[408438476,1773624632448,-3240.0,0.00017495,2]
[408438477,1773624632459,-1003.73,0.0001767,2]
[408438478,1773624632469,-4229.8,0.00017781,2]
[408438479,1773624632478,-500.0,0.00017797,2]
[408438480,1773624632487,-302.72146167,0.00017797,2]
[408438481,1773624632497,-234.55377187,0.00017808,2]
[408438482,1773624632506,-1308.0,0.00017982,2]
[408438483,1773624632515,-500.0,0.00017986,2]
[408438484,1773624632526,-200.0,0.00017986,2]
[408438485,1773624632535,-500.0,0.00017986,2]
[408438486,1773624632544,-500.0,0.00017986,2]
[408438487,1773624632554,-500.0,0.00017986,2]
[408438488,1773624632563,-500.0,0.00017986,2]
[408438489,1773624632575,-151.0,0.00017986,2]
[408438490,1773624632586,-151.0,0.00017986,2]
[408438491,1773624632595,-151.0,0.00017986,2]
[408438492,1773624632604,-151.0,0.00017986,2]
[408438493,1773624632614,-4406.6602446,0.00018,2]
[408438494,1773624632624,-271.95996386,0.00018058,2]
[408438495,1773624632633,-500.0,0.00018071,2]
[408438496,1773624632642,-894.8322414,0.00018071,2]
[408438497,1773624632655,-500.0,0.00018073,2]
[408438498,1773624632665,-7498.82916832,0.00018087,2]
[408438499,1773624632674,-151.0,0.00018094,2]
[408438500,1773624632683,-78709.94825784,0.00018097,2]
[408438501,1773624632695,-19062.76834216,0.00018097,2]
[408438502,1773624632705,-500.0,0.00018097,2]
[408438503,1773624632715,-153.25761505,0.000181,2]
[408438504,1773624632724,-62.57553247,0.00018148,2]
[408438505,1773624632758,-333.32,0.00018148,2]
[408438508,1773624637959,-359.4103643,0.00018148,2]
[408438509,1773624638011,-552.69410323,0.00018148,2]
[408438510,1773624638021,-1308.0,0.00018155,2]
[408438511,1773624638031,-500.0,0.00018184,2]
[408438512,1773624638040,-500.0,0.00018184,2]
[408438513,1773624638050,-500.0,0.00018184,2]
[408438514,1773624638060,-475.12005917,0.00018184,2]
[408438515,1773624638070,-500.0,0.00018184,2]
[408438516,1773624638079,-500.0,0.00018184,2]
[408438517,1773624638088,-488.94146914,0.00018184,2]
[408438518,1773624638097,-351.35344719,0.00018184,2]
[408438522,1773624640484,-28.02863377,0.00018184,2]
[408438523,1773624640494,-445.90472456,0.00018185,2]
[408438524,1773624640608,-2311.10971837,0.00018185,2]
[408438530,1773624642951,-1382.08232065,0.00018185,2]
[408438531,1773624643060,-1168.47503883,0.00018185,2]
[408438532,1773624643274,-5.89296747,0.00018185,2]
[408438534,1773624643286,-12425.10954623,0.00018185,2]
[408438535,1773624643297,-478.51655685,0.00018185,2]
[408438542,1773624645939,-4175.46232704,0.00018185,2]
[408438543,1773624645948,-1308.0,0.00018211,2]
[408438544,1773624645958,-1205.26058172,0.00018211,2]
[408438559,1773625724863,222.0,0.0002,120]
[408438562,1773625831956,-287.06431718,0.00013916,7]
[408438563,1773625831967,-894.93568282,0.00013916,7]
[408438564,1773625831977,-481.96453983,0.00014336,2]
[408438565,1773625831989,-500.0,0.00014336,2]
[408438566,1773625832053,-203.75546017,0.00014336,2]
[408438567,1773625832062,-300.0,0.00016999,2]
[408438568,1773625832072,-280.78908545,0.00016999,2]
[408438569,1773625832084,-19.21091455,0.00016999,2]
[408438570,1773625832094,-1200.0,0.00016999,2]
[408438571,1773625832105,-547.70990387,0.00017,7]
[408438572,1773625832117,-7702.25243735,0.00017,7]
[408438573,1773625832126,-157.79,0.00017026,2]
[408438574,1773625832136,-2000.0,0.00017142,2]
[408438575,1773625832146,-200.0,0.00017156,2]
[408438576,1773625832156,-888.0,0.00017283,2]
[408438578,1773625832166,-777.0,0.00017283,2]
[408438580,1773625832175,-888.0,0.00017283,2]
[408438581,1773625832185,-255.0,0.00017283,2]
[408438583,1773625832194,-1740.18,0.00017284,2]
[408438585,1773625832204,-888.0,0.00017284,2]
[408438587,1773625832213,-777.0,0.00017342,2]
[408438589,1773625832222,-777.0,0.00017344,2]
[408438591,1773625832231,-500.0,0.00017345,2]
[408438592,1773625832241,-5878.5,0.00017345,2]
[408438593,1773625832251,-2000.0,0.00017345,2]
[408438594,1773625832261,-168.0,0.00017537,2]
[408438595,1773625832270,-168.1,0.00017576,2]
[408438597,1773625832280,-168.0,0.00017682,2]
[408438599,1773625832290,-1740.18,0.00017716,2]
[408438600,1773625832299,-550.0,0.00017777,2]
[408438601,1773625832309,-500.0,0.00017778,2]
[408438602,1773625832319,-500.0,0.00017778,2]
[408438603,1773625832329,-500.0,0.00017778,2]
[408438604,1773625832339,-500.0,0.00017778,2]
[408438605,1773625832350,-500.0,0.00017778,2]
[408438606,1773625832359,-500.0,0.00017778,2]
[408438607,1773625832370,-500.0,0.00017778,2]
[408438608,1773625832379,-500.0,0.00017778,2]
[408438609,1773625832389,-500.0,0.00017778,2]
[408438610,1773625832399,-500.0,0.00017778,2]
[408438611,1773625832408,-500.0,0.00017778,2]
[408438612,1773625832418,-500.0,0.00017778,2]
[408438613,1773625832428,-151.0,0.00017778,2]
[408438614,1773625832437,-181.67968538,0.00017778,2]
[408438615,1773625832447,-151.0,0.00017833,2]
[408438616,1773625832457,-151.0,0.00017888,2]
[408438617,1773625832467,-150.0,0.00017908,2]
[408438618,1773625832477,-150.0,0.00017908,2]
[408438619,1773625832486,-151.0,0.00017943,2]
[408438620,1773625832497,-150.0,0.00017963,2]
[408438621,1773625832507,-150.0,0.00017963,2]
[408438622,1773625832518,-1186.0,0.00017981,2]
[408438623,1773625832530,-5019.99210317,0.00017995,2]
[408438624,1773625832543,-113409.3049,0.00017997,2]
[408438625,1773625832553,-500.0,0.00017997,2]
[408438626,1773625832563,-151.0,0.00017998,2]
[408438627,1773625832573,-557.0,0.0001801,2]
[408438628,1773625832583,-154.06069009,0.0001801,2]
[408438629,1773625832593,-240.07356059,0.00018018,2]
[408438630,1773625832602,-150.0,0.00018018,2]
[408438631,1773625832611,-174.593898,0.00018048,2]
[408438632,1773625832621,-151.0,0.00018053,2]
[408438633,1773625832631,-557.0,0.00018065,2]
[408438634,1773625832641,-152.24657196,0.00018072,2]
[408438635,1773625832650,-501.39212081,0.00018073,2]
[408438636,1773625832659,-500.0,0.00018073,2]
[408438637,1773625832669,-500.0,0.00018073,2]
[408438638,1773625832678,-500.0,0.00018073,2]
[408438639,1773625832688,-500.42908469,0.00018073,2]
[408438640,1773625832697,-500.0,0.00018073,2]
[408438641,1773625832706,-500.0,0.00018073,2]
[408438642,1773625832715,-500.0,0.00018073,2]
[408438643,1773625832726,-500.0,0.00018085,2]
[408438644,1773625832735,-500.0,0.00018086,2]
[408438645,1773625832744,-262.84567269,0.00018086,2]
[408438646,1773625832753,-500.0,0.00018086,2]
[408438647,1773625832762,-500.0,0.00018086,2]
[408438648,1773625832771,-500.0,0.00018086,2]
[408438649,1773625832781,-500.0,0.00018086,2]
[408438650,1773625832791,-202.18368162,0.00018086,2]
[408438651,1773625832801,-750.0,0.00018086,2]
[408438652,1773625832810,-500.0,0.00018086,2]
[408438653,1773625832820,-515.51151666,0.00018086,2]
[408438654,1773625832829,-750.0,0.00018086,2]
[408438655,1773625832839,-500.0,0.00018086,2]
[408438656,1773625832849,-750.0,0.00018086,2]
[408438657,1773625832858,-500.0,0.00018086,2]
[408438658,1773625832867,-750.0,0.00018086,2]
[408438659,1773625832876,-500.0,0.00018086,2]
[408438660,1773625832885,-500.0,0.00018086,2]
[408438661,1773625832894,-750.0,0.00018086,2]
[408438662,1773625832903,-500.0,0.00018086,2]
[408438663,1773625832912,-750.0,0.00018086,2]
[408438664,1773625832925,-500.0,0.00018086,2]
[408438665,1773625832934,-500.0,0.00018086,2]
[408438666,1773625832943,-750.0,0.00018086,2]
[408438667,1773625832953,-616.59252359,0.00018086,2]
[408438668,1773625832963,-500.0,0.00018086,2]
[408438669,1773625832972,-500.0,0.00018086,2]
[408438670,1773625832982,-750.0,0.00018086,2]
[408438671,1773625832991,-750.0,0.00018086,2]
[408438672,1773625833000,-258.89037286,0.00018086,2]
[408438673,1773625833011,-750.0,0.00018086,2]
[408438674,1773625833020,-250.0,0.00018086,2]
[408438675,1773625833029,-250.0,0.00018086,2]
[408438676,1773625833038,-500.0,0.00018086,2]
[408438677,1773625833047,-250.0,0.00018086,2]
[408438678,1773625833057,-250.0,0.00018086,2]
[408438679,1773625833066,-250.0,0.00018086,2]
[408438680,1773625833075,-250.0,0.00018086,2]
[408438681,1773625833084,-500.0,0.00018086,2]
[408438682,1773625833093,-892.15131628,0.00018086,2]
[408438683,1773625833102,-250.0,0.00018086,2]
[408438684,1773625833112,-500.0,0.00018086,2]
[408438685,1773625833122,-250.0,0.00018086,2]
[408438686,1773625833131,-500.0,0.00018086,2]
[408438687,1773625833140,-250.0,0.00018086,2]
[408438688,1773625833150,-500.0,0.00018086,2]
[408438689,1773625833159,-250.0,0.00018086,2]
[408438690,1773625833168,-500.0,0.00018086,2]
[408438691,1773625833177,-250.0,0.00018086,2]
[408438692,1773625833187,-500.0,0.00018086,2]
[408438693,1773625833195,-203.12664237,0.00018086,2]
[408438694,1773625833205,-154.69483146,0.00018086,2]
[408438695,1773625833214,-500.0,0.00018086,2]
[408438696,1773625833223,-151.0,0.00018086,2]
[408438697,1773625833233,-151.0,0.00018086,2]
[408438698,1773625833243,-151.0,0.00018086,2]
[408438699,1773625833253,-151.0,0.00018086,2]
[408438700,1773625833262,-151.0,0.00018086,2]
[408438701,1773625833272,-151.0,0.00018086,2]
[408438702,1773625833281,-151.0,0.00018086,2]
[408438703,1773625833291,-151.0,0.00018086,2]
[408438704,1773625833300,-151.0,0.00018086,2]
[408438705,1773625833310,-151.0,0.00018086,2]
[408438706,1773625833320,-151.0,0.00018086,2]
[408438707,1773625833329,-151.0,0.00018086,2]
[408438708,1773625833339,-151.0,0.00018086,2]
[408438709,1773625833349,-151.0,0.00018086,2]
[408438710,1773625833358,-268.57670729,0.00018086,2]
[408438711,1773625833367,-151.0,0.00018086,2]
[408438712,1773625833377,-151.0,0.00018086,2]
[408438713,1773625833386,-151.0,0.00018086,2]
[408438714,1773625833395,-500.0,0.00018086,2]
[408438715,1773625833405,-151.0,0.00018086,2]
[408438716,1773625833414,-500.0,0.00018086,2]
[408438717,1773625833423,-151.0,0.00018086,2]
[408438718,1773625833432,-151.0,0.00018086,2]
[408438719,1773625833442,-285.84914941,0.00018086,2]
[408438720,1773625833455,-214.15085059,0.00018086,2]
[408438721,1773625833465,-151.0,0.00018086,2]
[408438722,1773625833476,-198.45949308,0.00018086,2]
[408438723,1773625833486,-500.0,0.00018086,2]
[408438724,1773625833497,-151.0,0.00018086,2]
[408438725,1773625833509,-500.0,0.00018086,2]
[408438726,1773625833518,-500.0,0.00018086,2]
[408438727,1773625833527,-151.0,0.00018086,2]
[408438728,1773625833537,-500.0,0.00018086,2]
[408438729,1773625833546,-151.0,0.00018086,2]
[408438730,1773625833556,-500.0,0.00018086,2]
[408438731,1773625833565,-151.0,0.00018086,2]
[408438732,1773625833575,-500.0,0.00018086,2]
[408438733,1773625833585,-151.0,0.00018086,2]
[408438734,1773625833597,-500.0,0.00018086,2]
[408438735,1773625833606,-151.0,0.00018086,2]
[408438736,1773625833616,-500.0,0.00018086,2]
[408438737,1773625833625,-151.0,0.00018086,2]
[408438738,1773625833634,-500.0,0.00018086,2]
[408438739,1773625833644,-153.7981562,0.00018086,2]
[408438740,1773625833655,-1068.5599928,0.00018097,2]
[408438741,1773625833664,-17678.65761457,0.00018097,2]
[408438742,1773625833675,-661.27450817,0.00018097,2]
[408438743,1773625833687,-1157.65074635,0.00018097,2]
[408438744,1773625833700,-1335.71052593,0.00018097,2]
[408438746,1773625838050,-427.32786654,0.00018097,2]
[408438751,1773625840150,-511.0,0.00018097,2]
[408438752,1773625840161,-17146.05051394,0.00018097,2]
[408438754,1773625840170,-4613.7685579,0.00018097,2]
[408438756,1773625840181,-6574.6675047,0.00018097,2]
[408438758,1773625840191,-200.0,0.00018097,2]
[408438760,1773625840199,-168.0,0.00018101,2]
[408438761,1773625840208,-151.0,0.00018108,2]
[408438763,1773625840218,-557.0,0.0001812,2]
[408438764,1773625840227,-168.0,0.00018126,2]
[408438765,1773625840235,-1740.18,0.00018148,2]
[408438766,1773625840248,-3896.82652099,0.00018163,2]
[408438767,1773625840258,-151.0,0.00018163,2]
[408438768,1773625840267,-1952.449368,0.00018167,2]
[408438769,1773625840276,-557.0,0.00018174,2]
[408438770,1773625840285,-620.321742,0.00018178,2]
[408438771,1773625840294,-1000.0,0.00018185,2]
[408438772,1773625840303,-12343.49275652,0.00018185,2]
[408438773,1773625840313,-151.0,0.00018188,2]
[408438774,1773625840322,-290.414096,0.00018188,2]
[408438775,1773625840331,-290.414096,0.00018188,2]
[408438776,1773625840341,-290.414096,0.00018188,2]
[408438777,1773625840350,-290.414096,0.00018188,2]
[408438778,1773625840360,-154.523906,0.00018188,2]
[408438779,1773625840369,-154.523906,0.00018188,2]
[408438780,1773625840379,-154.523906,0.00018188,2]
[408438781,1773625840388,-154.523906,0.00018188,2]
[408438782,1773625840397,-1060.3102704,0.00018211,2]
[408438783,1773625840406,-250.0,0.00018211,2]
[408438784,1773625840416,-162.0,0.00018211,3]
[408438785,1773625840425,-165.0,0.00018211,3]
[408438786,1773625840434,-151.0,0.00018218,2]
[408438787,1773625840443,-557.0,0.00018229,2]
[408438788,1773625840452,-694.12,0.00018263,3]
[408438789,1773625840462,-500.0,0.00018271,2]
[408438790,1773625840471,-1214.72905169,0.00018273,2]
[408438791,1773625840480,-151.0,0.00018273,2]
[408438792,1773625840489,-280.5840701,0.00018284,2]
[408438793,1773625840498,-415.2857416,0.00018284,2]
[408438794,1773625840508,-500.0,0.00018284,2]
[408438795,1773625840518,-224.67541246,0.00018284,2]
[408438796,1773625840528,-500.0,0.00018284,2]
[408438797,1773625840538,-483.24969942,0.00018284,2]
[408438798,1773625840547,-155.23217611,0.00018284,2]
[408438799,1773625840555,-501.3535961,0.00018284,2]
[408438800,1773625840565,-265.38214851,0.00018284,2]
[408438801,1773625840574,-500.0,0.00018284,2]
[408438802,1773625840583,-246.39250767,0.00018284,2]
[408438803,1773625840592,-500.0,0.00018284,2]
[408438804,1773625840601,-500.0,0.00018284,2]
[408438805,1773625840611,-500.0,0.00018284,2]
[408438806,1773625840620,-500.0,0.00018284,2]
[408438807,1773625840629,-500.0,0.00018284,2]
[408438808,1773625840638,-500.0,0.00018284,2]
[408438809,1773625840647,-499.99999999,0.00018284,2]
[408438810,1773625840656,-159.52248577,0.00018284,2]
[408438811,1773625840666,-500.0,0.00018284,2]
[408438812,1773625840675,-500.0,0.00018284,2]
[408438814,1773625840684,-500.0,0.00018284,2]
[408438816,1773625840693,-500.0,0.00018284,2]
[408438817,1773625840702,-500.0,0.00018284,2]
[408438818,1773625840711,-557.0,0.00018284,2]
[408438819,1773625840721,-427.90764639,0.00018284,2]
[408438820,1773625840730,-500.0,0.00018284,2]
[408438821,1773625840740,-500.0,0.00018284,2]
[408438822,1773625840749,-764.89,0.00018284,2]
[408438823,1773625840758,-500.0,0.00018284,2]
[408438824,1773625840767,-512.12861437,0.00018284,2]
[408438825,1773625840777,-500.0,0.00018284,2]
[408438826,1773625840786,-500.0,0.00018284,2]
[408438827,1773625840795,-500.0,0.00018284,2]
[408438828,1773625840804,-500.0,0.00018284,2]
[408438829,1773625840813,-151.0,0.00018284,2]
[408438830,1773625840822,-514.22402055,0.00018284,2]
[408438831,1773625840831,-500.0,0.00018284,2]
[408438832,1773625840840,-500.0,0.00018284,2]
[408438833,1773625840849,-513.78984244,0.00018284,2]
[408438834,1773625840858,-500.0,0.00018284,2]
[408438835,1773625840868,-159.98953286,0.00018284,2]
[408438836,1773625840877,-202.11636693,0.00018284,2]
[408438837,1773625840886,-227142.51599918,0.00018285,2]
[408438838,1773625840898,-1047.23515996,0.00018285,2]
[408438856,1773625845952,-2500.0,0.00018185,2]
[408438857,1773625845963,-151.0,0.00018185,2]
[408438858,1773625845972,-154.317753,0.00018185,2]
[408438859,1773625845982,-8383.51566416,0.00018285,2]
[408438860,1773625846005,-262.6,0.00018285,2]
[408438861,1773625846059,-7350.80782977,0.00018285,2]
[408438935,1773626511700,10000.0,0.00011685,2]
[408438936,1773626553349,1532.0,0.00011685,2]
[408438937,1773626561035,8468.01,9.5e-05,3]
[408438938,1773626561057,10000.01,9.5e-05,3]
[408438939,1773626561079,10000.01,9.5e-05,3]
[408438940,1773626561105,10000.01,9.5e-05,3]
[408438941,1773626561126,10000.01,9.5e-05,3]
[408438942,1773626561148,10000.01,9.5e-05,3]
[408438943,1773626561170,4056.32457956,9.5e-05,3]
[408438944,1773626586425,157.0,0.00011685,2]
[408438945,1773626586653,157.0,0.00011685,2]
[408438950,1773626800440,1395.0,0.0002,120]
[408438951,1773626864303,546.26,8.371e-05,2]
[408438952,1773626864512,546.26,8.812e-05,2]
[408438953,1773626864718,546.26,9.253e-05,2]
[408438954,1773626864937,546.26,9.693e-05,2]
[408438955,1773626865150,546.26,0.00010134,2]
[408438956,1773626865368,546.26,0.00010575,2]
[408438957,1773626865798,546.26,0.00011015,2]
[408438958,1773626866018,546.26,0.00011456,2]
[408438959,1773626956192,-163.0,0.00011685,3]
[408438960,1773626956225,-157.0,0.00011685,3]
[408438961,1773627007281,157.0,0.00011685,2]
[408438962,1773627007932,163.0,0.00011685,2]
[408438977,1773627032212,-247.0,0.00011896,2]
[408438978,1773627032222,-546.26,0.00011896,2]
[408438979,1773627032232,-546.26,0.00012337,2]
[408438980,1773627032244,-546.26,0.00012778,2]
[408438981,1773627032257,-546.26,0.00013218,2]
[408438982,1773627032267,-546.26,0.00013659,2]
[408438983,1773627032276,-157.0,0.0001408,3]
[408438984,1773627032286,-600.0,0.00014089,2]
[408438985,1773627032297,-630.34395908,0.00014089,2]
[408438986,1773627032307,-546.26,0.00014099,2]
[408438987,1773627032318,-546.26,0.0001454,2]
[408438989,1773627032328,-546.26,0.00014981,2]
[408438991,1773627032338,-169.0,0.00015,3]
[408438992,1773627032348,-5533.0,0.000153,5]
[408438993,1773627032357,-546.26,0.00015421,2]
[408438994,1773627032366,-1200.0,0.0001547,2]
[408438996,1773627032376,-300.0,0.00015499,2]
[408438997,1773627032385,-546.26,0.00015862,2]
[408438998,1773627032395,-546.26,0.00016302,2]
[408438999,1773627032404,-157.0,0.00016474,3]
[408439000,1773627032414,-500.0,0.00016685,2]
[408439001,1773627032423,-546.26,0.00016743,2]
[408439002,1773627032433,-331.0,0.00016805,2]
[408439003,1773627032442,-150.0,0.00016805,2]
[408439004,1773627032452,-420.0,0.00016954,2]
[408439005,1773627032461,-542.0,0.00017,2]
[408439006,1773627032471,-1680.0,0.00017009,2]
[408439007,1773627032480,-160.14,0.00017345,2]
[408439008,1773627032490,-200.0,0.00017345,2]
[408439009,1773627032499,-500.0,0.00017345,2]
[408439010,1773627032509,-678.98,0.00017345,2]
[408439011,1773627032519,-1500.0,0.00017345,2]
[408439012,1773627032528,-500.0,0.00017425,2]
[408439013,1773627032538,-500.0,0.00017573,2]
[408439014,1773627032550,-500.0,0.00017573,2]
[408439015,1773627032560,-500.0,0.00017573,2]
[408439016,1773627032569,-500.0,0.00017573,2]
[408439017,1773627032579,-500.0,0.00017573,2]
[408439018,1773627032589,-500.0,0.00017573,2]
[408439019,1773627032598,-500.0,0.00017573,2]
[408439020,1773627032607,-151.0,0.00017573,2]
[408439021,1773627032617,-500.0,0.00017573,2]
[408439022,1773627032626,-500.0,0.00017573,2]
[408439023,1773627032635,-504.29101988,0.00017573,2]
[408439025,1773627032644,-5774.96887006,0.000176,2]
[408439026,1773627032654,-197.15852225,0.00017628,2]
[408439028,1773627032665,-500.13,0.00017648,2]
[408439030,1773627032674,-2417.68580177,0.00017697,2]
[408439032,1773627032683,-403.0,0.000177,5]
[408439034,1773627032693,-500.0,0.00017773,2]
[408439036,1773627032702,-500.0,0.00017773,2]
[408439038,1773627032712,-502.71070807,0.00017773,2]
[408439040,1773627032723,-6399.3081,0.00017797,2]
[408439042,1773627032736,-301794.8311,0.00017797,2]
[408439044,1773627032745,-500.0,0.00017797,2]
[408439047,1773627032756,-168.0,0.00017823,2]
[408439048,1773627032766,-32546.7273,0.00017897,2]
[408439050,1773627032776,-3741.05159051,0.00017907,2]
[408439051,1773627032787,-168.0,0.00017952,2]
[408439052,1773627032797,-10004.09,0.00017973,2]
[408439053,1773627032807,-500.0,0.00017973,2]
[408439054,1773627032816,-500.0,0.00017973,2]
[408439055,1773627032827,-171.70079374,0.00017973,2]
[408439056,1773627032837,-1000.0,0.00017986,2]
[408439057,1773627032847,-12425.1095,0.00017986,2]
[408439058,1773627032856,-500.0,0.00017986,2]
[408439059,1773627032866,-500.0,0.00017986,2]
[408439060,1773627032875,-500.0,0.00017986,2]
[408439061,1773627032884,-500.0,0.00017986,2]
[408439062,1773627032894,-500.0,0.00017986,2]
[408439063,1773627032904,-500.0,0.00017986,2]
[408439064,1773627032913,-275.33923537,0.00017986,2]
[408439065,1773627032923,-500.0,0.00017986,2]
[408439066,1773627032933,-500.0,0.00017986,2]
[408439067,1773627032943,-500.0,0.00017986,2]
[408439068,1773627032952,-500.0,0.00017986,2]
[408439069,1773627032962,-500.0,0.00017986,2]
[408439070,1773627032974,-500.0,0.00017986,2]
[408439071,1773627032983,-500.0,0.00017986,2]
[408439072,1773627032992,-500.0,0.00017986,2]
[408439073,1773627033003,-500.0,0.00017986,2]
[408439074,1773627033013,-500.0,0.00017986,2]
[408439075,1773627033022,-500.0,0.00017986,2]
[408439076,1773627033031,-558.1515456,0.00017986,2]
[408439077,1773627033041,-1930.35775507,0.00018,7]
[408439078,1773627033051,-37031.92091157,0.00018,2]
[408439079,1773627033060,-168.0,0.00018007,2]
[408439080,1773627033070,-418.0,0.0001801,2]
[408439081,1773627033079,-2417.6858017,0.00018012,2]
[408439082,1773627033089,-350.0,0.00018056,2]
[408439083,1773627033099,-418.0,0.00018065,2]
[408439084,1773627033110,-168.0,0.00018069,2]
[408439085,1773627033120,-632.23907093,0.00018071,2]
[408439086,1773627033130,-300.0,0.00018085,2]
[408439087,1773627033143,-672.1888797,0.00018085,2]
[408439088,1773627033153,-2730.82644722,0.00018086,2]
[408439089,1773627033163,-2060.64490524,0.00018086,2]
[408439090,1773627033172,-2708.60236614,0.00018086,2]
[408439091,1773627033182,-8683.16737052,0.00018086,2]
[408439092,1773627033192,-232.331277,0.00018086,2]
[408439093,1773627033202,-232.331277,0.00018086,2]
[408439094,1773627033211,-232.331277,0.00018086,2]
[408439095,1773627033221,-232.331277,0.00018086,2]
[408439096,1773627033234,-151.0,0.00018086,2]
[408439097,1773627033244,-151.0,0.00018086,2]
[408439098,1773627033258,-151.0,0.00018086,2]
[408439099,1773627033268,-207.382488,0.00018086,2]
[408439100,1773627033279,-418.0,0.0001812,2]
[408439101,1773627033291,-3741.05159045,0.00018128,2]
[408439102,1773627033301,-418.0,0.00018174,2]
[408439103,1773627033310,-178.635,0.00018178,2]
[408439104,1773627033320,-2842.5,0.00018178,2]
[408439105,1773627033332,-168.0,0.00018191,2]
[408439106,1773627033341,-167.89,0.000182,2]
[408439107,1773627033351,-416.26583419,0.0001821,2]
[408439108,1773627033360,-1000.0,0.00018211,2]
[408439109,1773627033369,-1000.0,0.00018211,2]
[408439110,1773627033379,-1000.0,0.00018211,2]
[408439111,1773627033388,-983.809,0.00018211,2]
[408439112,1773627033397,-168.0,0.00018221,2]
[408439113,1773627033407,-418.0,0.00018229,2]
[408439114,1773627033416,-168.0,0.00018238,2]
[408439115,1773627033426,-878.62,0.00018247,2]
[408439116,1773627033435,-1678.73085,0.0001828,2]
[408439117,1773627033444,-1678.73084,0.0001828,2]
[408439118,1773627033453,-1678.73085,0.0001828,2]
[408439119,1773627033462,-1678.73084,0.0001828,2]
[408439120,1773627033471,-300.0,0.00018283,2]
[408439121,1773627033481,-418.0,0.00018284,2]
[408439122,1773627033490,-553.49386102,0.00018284,2]
[408439123,1773627033499,-20258.3943641,0.00018284,2]
[408439124,1773627033510,-511.13782395,0.00018284,2]